Cogmind - Beta 12 @@@ ROGUE MODE // 2023.04.26 @ 01:56:39 Player: Dytto Result: Destroyed by D-53 Grenadier with Mini Grenade Launcher Performance ------------- Evolutions (0) 0 Regions Visited (2) 400 Robots Destroyed (9) 45 Value Destroyed (138) 138 Prototype IDs (2) 40 Alien Tech Used (0) 0 Bonus (0) 0 TOTAL SCORE: 623 Bonus ------- None Cogmind --------- Core Integrity 0/250 Matter 222/300 Energy 99/100 System Corruption 0% Temperature Cool (0) Movement Core (50) Location -10/Mines Parts ------- > --- POWER (1) -------- (None) > --- PROPULSION (2) --- (None) > --- UTILITY (2) ------ (None) > --- WEAPON (2) ------- (None) > --- INVENTORY (5) ---- Targeting Computer Light Armor Plating Medium Laser Makeshift Hammer Peak State ------------ > --- POWER ------------ Light Ion Engine > --- PROPULSION ------- Wheel Compact Wheel > --- UTILITY ---------- Targeting Computer Weapon Shielding > --- WEAPON ----------- Small Laser Rocket Launcher > --- INVENTORY -------- Targeting Computer Light Armor Plating Medium Laser Small Laser [Rating: 8] Favorites ----------- Power Light Ion Engine Engine Light Ion Engine Propulsion Wheel Wheel Wheel Utility Targeting Computer Processor Targeting Computer Protection Weapon Shielding Weapon Light Assault Rifle Energy Gun Small Laser Ballistic Gun Light Assault Rifle Launcher Rocket Launcher Build | -11 -10 -10 ------- Run | Jun Mat Min Slots Evolved . | . . . Power . | . . . Propulsion . | . . . Utility . | . . . Weapon . | . . . Parts Attached 21 | 6 13 2 Power 3 | 1 2 . Engine 3 | 1 2 . Core . | . . . Reactor . | . . . Propulsion 6 | 2 3 1 Treads . | . . . Leg . | . . . Wheel 6 | 2 3 1 Hover . | . . . Flight . | . . . Utility 4 | . 4 . Device . | . . . Storage . | . . . Processor 1 | . 1 . Hackware . | . . . Protection 3 | . 3 . Artifact . | . . . Weapon 8 | 3 4 1 Energy Gun 5 | 2 3 . Energy Cannon . | . . . Ballistic Gun 2 | 1 1 . Ballistic Cannon . | . . . Launcher 1 | . . 1 Special Weapon . | . . . Impact Weapon . | . . . Slashing Weapon . | . . . Piercing Weapon . | . . . Special Melee Weapon . | . . . Unidentified Prototypes . | . . . Parts Lost 8 | . 1 7 Power 2 | . 1 1 Propulsion 2 | . . 2 Utility 2 | . . 2 Weapon 2 | . . 2 Highest Loss Streak 7 | . 1 7 To Critical Strikes . | . . . Average Slot Usage (%) 90 | . 90 92 Engine 12 | . 12 13 Wheel 27 | . 27 26 Processor 11 | . 10 13 Protection 11 | . 10 13 Energy Gun 13 | . 13 13 Ballistic Gun 11 | . 13 2 Launcher 2 | . . 11 Naked Turns 4 | . . 4 Heaviest Build 9 | 6 8 9 Greatest Support 26 | 26 26 26 Greatest Overweight (x) . | . . . Average Overweight (x) . | . . . Largest Inventory Capacity 5 | 5 5 5 Average Capacity 5 | 5 5 5 Most Carried 5 | 1 5 5 Average Carried 3 | . 3 4 Final Capacity 5 | 5 5 5 Final Carried 5 | . 5 4 Class Distribution -------------------- 100% | Mutant Dominant Class ---------------- Mutant | -10/Materials Mutant | -10/Mines Resources | -11 -10 -10 ----------- Run | Jun Mat Min Matter Collected 350 | 211 139 . Remotely . | . . . Salvage Created 196 | . 194 2 Parts 16 | . 16 . Haulers Intercepted . | . . . Recyclers Shooed . | . . . Parts Field Recycled . | . . . Retrieved Matter . | . . . Parts Self-Destructed . | . . . Prevented . | . . . Kills | -11 -10 -10 ------- Run | Jun Mat Min Combat Hostiles Destroyed 12 | . 9 3 Guns 9 | . 9 . AOE 3 | . . 3 Classes Destroyed 3 | . 2 1 Swarmer 7 | . 7 . Grunt 2 | . 2 . Assembled 3 | . . 3 Best Kill Streak 3 | . 3 3 Combat Bots Only 3 | . 3 3 Max Kills in Single Turn 2 | . 1 2 Gunslinging . | . . . Exploded 2 | . . 2 Melee . | . . . Uniques/NPCs Destroyed . | . . . Combat | -11 -10 -10 -------- Run | Jun Mat Min Damage Taken 748 | . 351 397 Core 253 | . 62 191 Absorbed by Shields . | . . . Redirected to Shielding 52 | . 39 13 Core Remaining (%) 100 | 100 . . Volleys Fired 28 | . 25 3 Largest 2 | . 2 2 Hottest 73 | . 70 73 Shots Fired 55 | . 50 5 Gun 52 | . 50 2 Cannon . | . . . Launcher 3 | . . 3 Special . | . . . Kinetic 25 | . 25 . Thermal 27 | . 25 2 Explosive 3 | . . 3 Electromagnetic . | . . . Robot Hit Streak 6 | . 6 3 Robot Miss Streak 5 | . 5 1 Penetration Max . | . . . Secondary Targets 2 | . 2 . Max Gunslinging Chain 1 | . 1 . Shots Hit Robots 30 | . 26 4 Core Hits 21 | . 14 7 Critical Kills . | . . . Critical Parts Destroyed . | . . . Critical Strikes 1 | . 1 . Burn 1 | . 1 . Melee Attacks . | . . . Impact . | . . . Slashing . | . . . Piercing . | . . . Sneak Attacks . | . . . Combat Hostiles . | . . . Follow-up Attacks . | . . . Damage Inflicted 575 | . 270 305 Guns 293 | . 270 23 Cannons . | . . . Explosions 282 | . . 282 Melee . | . . . Ramming . | . . . Kinetic 83 | . 83 . Thermal 210 | . 187 23 Explosive 282 | . . 282 Electromagnetic . | . . . Impact . | . . . Slashing . | . . . Piercing . | . . . Highest Corruption . | . . . Average Corruption . | . . . Corruption Purged . | . . . Corruption Blocked . | . . . Overload Shots . | . . . Overflow Damage 33 | . . 33 Projectiles . | . . . Explosions 33 | . . 33 Melee . | . . . Knockbacks . | . . . Impact . | . . . Kinetic . | . . . Secondary . | . . . Self-Inflicted Damage 133 | . . 133 Shots 3 | . . 3 Rammed . | . . . Targets Rammed . | . . . Kicked . | . . . Crushed . | . . . Highest Temperature 78 | . 78 40 Average Temperature 28 | . 30 19 Received Heat Transfer 116 | . 96 20 Siege Activations . | . . . Robots Corrupted . | . . . Combat Hostiles . | . . . Parts Fried . | . . . Impact Corruptions . | . . . Robots Melted . | . . . Combat Hostiles . | . . . Parts Melted . | . . . Heat Transferred 655 | . 605 50 Parts Sabotaged . | . . . Parts Stolen . | . . . Parts Stripped . | . . . Power Chain Reactions . | . . . Missiles Intercepted . | . . . Alert | -11 -10 -10 ------- Run | Jun Mat Min Peak Influence 260 | . 260 76 Initial 49 | . . 49 Average 90 | . 109 48 Maximum Alert Level 1 | . 1 . Low Security (%) 96 | 100 95 100 Level 1 3 | . 4 . Level 2 . | . . . Level 3 . | . . . Level 4 . | . . . Level 5 . | . . . High Security . | . . . Max Security . | . . . Squads Dispatched 2 | . 2 . Investigation 2 | . 2 . Extermination . | . . . Reinforcement . | . . . Assault . | . . . Garrison . | . . . Intercept . | . . . Searches Triggered . | . . . Construction Impeded . | . . . Haulers Reinforced . | . . . Active Scanning Responses . | . . . Cargo Convoy Interrupts . | . . . Stealth | -11 -10 -10 --------- Run | Jun Mat Min Distress Signals 1 | . 1 . Communications Jammed . | . . . Distress Signals . | . . . Times Spotted 33 | . 20 13 Peak Tracking Total 11 | . 5 11 Tactical Retreats 2 | . 2 . Traps | -11 -10 -10 ------- Run | Jun Mat Min Traps Triggered 5 | . 5 . Indirectly . | . . . Trap Hack Attempts . | . . . Triggered . | . . . Disarmed . | . . . Reprogrammed . | . . . Reused . | . . . Traps Extracted . | . . . Installed . | . . . Triggered . | . . . Machines | -11 -10 -10 ---------- Run | Jun Mat Min Machines Disabled . | . . . Max in Single Turn . | . . . Machines Repaired . | . . . Machines Sabotaged . | . . . Overloaded Fab Kills . | . . . Hacking | -11 -10 -10 --------- Run | Jun Mat Min Machines Accessed 5 | . 5 . Terminals 3 | . 3 . Fabricators . | . . . Repair Stations 1 | . 1 . Recycling Units 1 | . 1 . Scanalyzers . | . . . Garrison Access . | . . . Total Hacks 10 | . 10 . Successful 4 | . 4 . Failed 6 | . 6 . Catastrophic 1 | . 1 . Database Lockouts . | . . . Manual . | . . . Terminals 5 | . 5 . Fabricators . | . . . Repair Stations 3 | . 3 . Recycling Units 2 | . 2 . Scanalyzers . | . . . Garrison Access . | . . . Terminal Hacks 3 | . 3 . Prototype ID Bank 1 | . 1 . Transport Status 1 | . 1 . Reinforcement Status 1 | . 1 . Fabricator Hacks . | . . . Repair Station Hacks 1 | . 1 . Scan Component 1 | . 1 . Recycling Unit Hacks . | . . . Scanalyzer . | . . . Garrison Access Hacks . | . . . Unauthorized Hacks . | . . . Terminals . | . . . Fabricators . | . . . Repair Stations . | . . . Recycling Units . | . . . Scanalyzers . | . . . Garrison Access . | . . . Data Cores Recovered . | . . . Used . | . . . Hacking Detections 3 | . 3 . Full Trace Events 2 | . 2 . Feedback Events . | . . . Feedback Blocked . | . . . Robot Schematics Acquired . | . . . Robots Built . | . . . Authchips . | . . . Time . | . . . Total Robot Build Rating . | . . . Part Schematics Acquired . | . . . Parts Built . | . . . Authchips . | . . . Time . | . . . Total Part Build Rating . | . . . Parts Repaired . | . . . Time . | . . . Parts Recycled . | . . . Recycled Matter . | . . . Retrieved Matter . | . . . Retrieved Components . | . . . Parts Scanalyzed . | . . . Part Schematics Acquired . | . . . Parts Damaged . | . . . Bothacking | -11 -10 -10 ------------ Run | Jun Mat Min Used RIF Installer . | . . . Robots Hacked . | . . . Non-combat . | . . . Combat . | . . . Robot Hacks Applied . | . . . Relay Couplers Released . | . . . Fabnet Peak Effective % . | . . . Robots Rewired . | . . . Allies Hacked . | . . . Hacks Repelled . | . . . Allies | -11 -10 -10 -------- Run | Jun Mat Min Total Allies . | . . . Largest Group . | . . . Highest-Rated Group . | . . . Highest-Rated Ally . | . . . Total Orders . | . . . Ally Attacks . | . . . Total Damage . | . . . Kills . | . . . Allies Corrupted . | . . . Allies Melted . | . . . Intel | -11 -10 -10 ------- Run | Jun Mat Min Robot Analysis Total . | . . . Derelict Logs Recovered 2 | . . 2 Drone Launches . | . . . Drone Recoveries . | . . . Exploration | -11 -10 -10 ------------- Run | Jun Mat Min Turns Passed 761 | 53 568 140 Spaces Moved 712 | 53 516 143 Core 16 | 7 1 8 Treads . | . . . Legs . | . . . Wheels 696 | 46 515 135 Hover . | . . . Flight . | . . . Fastest Speed 50 | 50 50 50 Average Speed 89 | 83 90 87 Slowest Speed 100 | 90 100 90 Overloaded Moves . | . . . Propulsion Burnouts . | . . . Robots Hopped . | . . . Cave-ins Triggered . | . . . Exploration Rate (%) 35 | 3 71 33 Regions Visited 2 Branch Regions 1 Pre-discovered Areas 2 | . . 2 Known Exits Taken . | . . . Unknown Exits Taken 2 | 1 1 . Scrap Searched . | . . . Spaces Dug . | . . . Terrain Destroyed 37 | . . 37 Melee . | . . . Projectile . | . . . AOE 37 | . . 37 Terrain Rammed . | . . . Walls Destroyed . | . . . Machines Disabled . | . . . Actions | -11 -10 -10 --------- Run | Jun Mat Min Total 785 | 59 572 154 Wait 5 | . 5 . Move 710 | 52 515 143 Hop . | . . . Pick Up 11 | . 8 3 Fast Attach 14 | 5 9 . Attach 6 | 1 3 2 Detach 3 | 1 2 . Swap 1 | . 1 . Drop 7 | . 4 3 Fire 28 | . 25 3 Melee . | . . . Ram . | . . . Kick . | . . . Crush . | . . . Escape Stasis . | . . . Rewire . | . . . Trap . | . . . Miscellaneous . | . . . Route ------- -11/Junkyard -10/Materials (discovered 4 exits: [*Mat x3] / [*Min]) -10/Mines (discovered 1 exit: [*Mat]) History --------- Turn | Location | Event 6 | -11/Junkyard | Discovered new exit (range 16) 54 | -11/Junkyard | Entered Materials 222 | -10/Materials | Discovered new exit (range 10) 318 | -10/Materials | Build established: Mutant 549 | -10/Materials | Discovered new exit (range 10) 583 | -10/Materials | Discovered new exit (range 12) 593 | -10/Materials | Discovered new exit (range 15) 622 | -10/Materials | Entered Mines 623 | -10/Mines | Learned location of Storage (-8) 629 | -10/Mines | Discovered new exit (range 13) 634 | -10/Mines | Learned location of Mines (-9) 636 | -10/Mines | Received a Rocket Launcher from a helpful Derelict 723 | -10/Mines | A weapon hastily lodged in a ceiling crevice suddenly fell to the ground 730 | -10/Mines | Assembled infested the area 741 | -10/Mines | Learned location of 1 exit from Materials 760 | -10/Mines | Core integrity fell below 50% 762 | -10/Mines | Core integrity fell below 20% 762 | -10/Mines | Destroyed by D-53 Grenadier with Mini Grenade Launcher Last Messages --------------- 00751_ Sml. Laser destroyed. 00751_ Destroyed Sml. Laser. 00752_ as-81128 destroyed. 00752_ as-87934 destroyed. 00752_ as-49856 destroyed. 00754_ as-87067 destroyed. 00754_ Destroyed Asb. Hover Unit. 00754_ as-90582 destroyed. 00754_ Com. Wheel destroyed. 00754_ Destroyed Com. Wheel. 00754_ Rocket Launcher destroyed. 00754_ Destroyed Rocket Launcher. 00756_ as-63732 destroyed. 00756_ as-75041 destroyed. 00756_ as-37172 destroyed. 00757_ as-28241 destroyed. 00758_ The unstable cave ceiling collapses. 00758_ Lgt. Ion Engine destroyed. 00758_ Wheel destroyed. 00759_ The unstable cave ceiling collapses. Map ----- +----------------------------------------------------+ | ????????????????# #???????????????????? | | ????????????????# #???????????????????? | | ????????????????+ #???????????????????? | | ????????????????+ #???????????????????? | | ????????????????# #???????????????????? | | ????????????????# #???????????????????? | | ????????????????## #???????????????????? | | ?????????????????##### ######???????????????????? | | ?????????????????????# #?????##########?????????? | | ?????????????????????# #?????# #???? | | ?????????????????????# #???### ########?????????? | | ????????###??????????# #?### #?????????????? | | ???????## #??????????# ### # #######???????? | | ???##### #??????????# ## #####???? | | ??## #???????#### ### #???? | | ??# ##???????# ## ## ? | | ??# #????????# ## % #? | | ??## #????????# ###### % #???? | | ???## #????????# #????# r #????? | | ????## ##???????# #????### % #????? | | ?????# #?????### #???## ##????? | | ?????## ##???## #?### dd ##?????? | | ?????## #?### ### # ###??????? | | ??#### ### #????????? | | ?## #????????? | | ## @ % ##????????? | | < ### ## ########?????????? | | ##?# #### ####????????????????? | | ####### ##??## #??## # ##???????????????????? | | ??????# #????# ##???#####????????????????????? | | ??????# #???# ##?????????????????????????????? | | ??????# #??# #??????????????????????????????? | | ??????# ? #??????????????????????????????? | | ??????# #??????????????????????????????? | | ??????# #??????????????????????????????? | | ??????## ??????????????????????????????? | | ???????# ? ### ??????????????????????????????? | | ???????? ? ???# ?????????????????????????????? | | ???????? ?????? ?????????????????????????????? | | ????????? ??????? ??????????????????????????????? | | ?????????????????????????????????????????????????? | | ?????????????????????????????????????????????????? | | ?????????????????????????????????????????????????? | | ?????????????????????????????????????????????????? | | ?????????????????????????????????????????????????? | | ?????????????????????????????????????????????????? | | ?????????????????????????????????????????????????? | | ?????????????????????????????????????????????????? | | ?????????????????????????????????????????????????? | | ?????????????????????????????????????????????????? | +----------------------------------------------------+ Best States ------------- Heat Dissipation 25 Energy Generation 10 Energy Capacity 125 Matter Stores 300 Matter Capacity 300 Sight Range 16 Terrain Scan Density 10 Weapon Shielding 33 Evasion (%) 50 Targeting Accuracy 5 Item Schematics ----------------- None Robot Schematics ------------------ None Fabricated ------------ Nothing Alien Tech Used ----------------- None Achievements -------------- None Challenges ------------ None Game ------ Seed ChainLayeredScanner Manual? 0 Play Time 00:10:04 Cumulative 20.8 hours Start 2023.04.26 @ 01:46:56 End 2023.04.26 @ 01:56:39 Sessions 1 Manual Loads 0 Difficulty Rogue Special Mode None Game No. 79 Rogue 43 Adventurer 36 Explorer 0 Win Type - Total 0 Types 0/0/0/0/0/0/0/0/0 Lore% 15 Gallery% 21 Achievement% 15 Wizard Run 0 Options --------- ASCII 0 Keyboard 1 Movement Numpad Keybinds 0 Fullscreen 2 Font 18/X11Bold Map View 76x50 Tactical HUD 1 Map Filters NONE Filters NONE Steam 1 RUN: eba8b93d-ef55-4f4a-9202-861b8748e8f5